bitfinex/quotes_ETHUSD_20210401
["timestamp","ask_amount","ask_price","bid_price","bid_amount"]
[1617288238066,9.72476177,1928.4,1928.1,0.49992]
[1617288238267,7.00712817,1928.3,1928.1,0.49992]
[1617288238567,7.40712817,1928.3,1928.1,0.49992]
[1617288238772,12.26852361,1928.2,1928.1,0.49992]
[1617288238968,20.78712361,1928.2,1928.1,0.49992]
[1617288239170,15.52572817,1928.2,1928.1,0.49992]
[1617288239366,15.13572817,1928.2,1928.1,0.49992]
[1617288240068,22.92061817,1928.2,1928.1,0.49992]
[1617288242498,23.32061817,1928.2,1928.1,0.49992]
[1617288245923,24.52061817,1928.2,1928.1,0.49992]
[1617288247248,6.4,1928.1,1927.8,15.76336]
[1617288247453,3.79,1928.0,1927.8,15.76336]
[1617288247650,6.00728818,1927.9,1927.8,15.76336]
[1617288247854,6.00728818,1927.9,1927.8,18.86336]
[1617288249360,6.00728818,1927.9,1927.8,15.76336]
[1617288251977,6.00728818,1927.9,1927.8,16.15336]
[1617288252419,6.00728818,1927.9,1927.8,19.31336]
[1617288252725,6.00728818,1927.9,1927.8,18.92336]
[1617288253321,6.00728818,1927.9,1927.8,15.76336]
[1617288256829,6.00728818,1927.9,1927.8,20.56336]
[1617288257025,6.50720817,1928.3,1927.8,20.56336]
[1617288257224,7.84720817,1928.3,1927.9,7.7835]
[1617288257447,6.50720817,1928.2,1927.9,7.7835]
[1617288257859,6.50720817,1928.2,1927.9,11.3635]
[1617288258252,6.50720817,1928.2,1927.9,7.7835]
[1617288258450,6.50720817,1928.2,1927.8,16.16336]
[1617288258850,7.55471904,1928.2,1927.8,16.16336]
[1617288259052,6.50720817,1928.2,1927.8,16.16336]
[1617288260203,6.50720817,1928.1,1927.8,15.76336]
[1617288260505,10.00720817,1928.1,1927.8,15.76336]
[1617288260707,6.50720817,1928.0,1927.8,15.76336]
[1617288261302,6.50720817,1928.0,1927.8,19.46336]
[1617288262233,6.50720817,1928.0,1927.8,15.76336]
[1617288263332,6.50720817,1928.0,1927.9,7.78345]
[1617288263933,6.50720817,1928.0,1927.8,16.14336]
[1617288264337,6.50720817,1928.0,1927.8,12.2509]
[1617288265643,6.50720817,1928.0,1927.9,13.15]
[1617288266436,6.50720817,1928.0,1927.9,20.93288]
[1617288267338,6.50720817,1928.0,1927.9,26.45288]
[1617288269854,6.50720817,1928.0,1927.9,13.70288]
[1617288270454,6.50720817,1928.0,1927.9,13.30288]
[1617288270686,6.50720817,1928.0,1927.9,5.52]
[1617288271477,6.50720817,1928.0,1927.9,5.93]
[1617288272377,7.54922601,1928.0,1927.9,5.93]
[1617288272573,6.50720817,1928.0,1927.9,5.93]
[1617288272975,6.50720817,1928.0,1927.9,13.71355]
[1617288276623,6.50720817,1928.0,1927.9,21.71355]
[1617288277028,6.50720817,1928.0,1927.9,26.86355]
[1617288279350,6.50720817,1928.0,1927.9,21.71355]
[1617288281092,6.50720817,1928.0,1927.9,28.41355]
[1617288281994,6.50720817,1928.0,1927.9,21.71355]
[1617288282496,6.50720817,1928.0,1927.9,21.30355]
[1617288282697,6.50720817,1928.0,1927.9,5.52]
[1617288284605,6.50720817,1928.0,1927.9,13.30333]
[1617288285103,6.50720817,1928.0,1927.9,18.31333]
[1617288287730,6.50720817,1928.0,1927.9,18.69333]
[1617288288727,6.50720817,1928.0,1927.9,18.31333]
[1617288292975,6.50720817,1928.0,1927.9,26.70333]
[1617288295007,6.50720817,1928.0,1927.9,18.31333]
[1617288296013,6.50720817,1928.0,1927.9,28.08243]
[1617288297338,13.0,1928.0,1927.9,28.08243]
[1617288297841,13.0,1928.0,1927.9,28.47243]
[1617288299560,8.38680564,1928.8,1927.9,35.47243]
[1617288299763,8.38680564,1928.8,1928.6,0.41]
[1617288299965,8.38680564,1928.8,1928.6,11.46449882]
[1617288300168,8.38680564,1928.8,1928.7,11.33]
[1617288300366,7.18680564,1928.8,1928.7,14.73]
[1617288300565,0.57,1928.9,1928.8,26.20867816]
[1617288300865,0.10020409,1929.0,1928.9,34.46]
[1617288301063,0.10020409,1929.0,1928.9,42.3787]
[1617288301965,4.09e-06,1929.0,1928.9,53.15587]
[1617288302181,1.0,1929.4,1928.9,63.82301664]
[1617288302391,1.0,1929.4,1929.3,19.14]
[1617288302592,1.0,1929.4,1929.3,30.72]
[1617288302785,1.0,1929.4,1929.3,33.72]
[1617288302984,1.0,1929.4,1929.3,65.39753852]
[1617288303184,0.345,1929.5,1929.4,27.25]
[1617288303389,0.38,1930.5,1929.5,24.35]
[1617288303586,0.47406894,1930.5,1929.8,15.5]
[1617288303786,0.38,1930.5,1929.8,15.5]
[1617288303987,0.38,1930.5,1929.8,23.5]
[1617288304284,1.045,1929.9,1929.8,29.84197839]
[1617288304707,1.045,1929.9,1929.8,28.16]
[1617288305110,1.0,1929.9,1929.8,28.16]
[1617288305311,1.045,1929.9,1929.8,28.16]
[1617288305816,1.045,1929.9,1929.8,44.46]
[1617288306311,1.0,1929.9,1929.8,41.46]
[1617288306514,1.0,1929.9,1929.8,42.7267143]
[1617288306515,1.045,1929.9,1929.8,42.7267143]
[1617288306711,7.18680564,1930.6,1929.8,72.7267143]
[1617288306914,7.18680564,1930.6,1930.2,5.01]
[1617288307214,7.18680564,1930.6,1930.3,32.64]
[1617288307438,7.18680564,1930.6,1930.4,23.15]
[1617288307637,7.18680564,1930.6,1930.5,23.12285294]
[1617288307837,7.18680564,1930.6,1930.5,34.63285294]
[1617288308133,7.18680564,1930.6,1930.5,20.11807577]
[1617288308835,7.18680564,1930.6,1930.5,29.33587656]
[1617288309038,5.64e-06,1930.6,1930.5,58.02082399]
[1617288309337,1.0,1930.9,1930.8,16.48]
[1617288309541,1.0,1930.9,1930.8,33.1079]
[1617288309738,1.0,1930.9,1930.8,37.2679]
[1617288309958,1.0,1930.9,1930.8,45.03778]
[1617288310150,1.0,1930.9,1930.8,46.48457284]
[1617288310650,1.0,1930.9,1930.8,45.03778]
[1617288311553,1.0,1930.9,1930.8,46.07724012]
[1617288311751,1.0,1930.9,1930.8,45.03778]
[1617288312153,5.23320781,1931.3,1930.9,11.85]
[1617288312356,5.23320781,1931.3,1931.2,19.1]
[1617288312579,5.23320781,1931.3,1931.2,40.6773]
[1617288312777,1.0,1931.4,1931.2,42.03009307]
[1617288312979,1.0,1931.4,1931.3,27.00576654]
[1617288313380,1.0,1931.4,1931.3,51.54625348]
[1617288313979,1.0,1931.4,1931.3,50.49754653]
[1617288315401,1.0,1931.9,1931.3,50.49754653]
[1617288315604,1.14,1931.9,1931.5,0.371]
[1617288315806,11.68176726,1932.6,1931.5,0.371]
[1617288315807,5.23320781,1932.6,1931.8,30.41]
[1617288316011,5.23320781,1932.6,1932.2,0.41]
[1617288316208,5.23320781,1932.6,1932.3,20.817758]
[1617288316505,5.23320781,1932.6,1932.3,30.19702233]
[1617288316905,5.23320781,1932.6,1932.3,30.797758]
[1617288317105,5.61320781,1932.6,1932.2,10.4788]
[1617288317307,5.61320781,1932.6,1932.3,2.995758]
[1617288317505,5.61320781,1932.6,1932.3,17.755758]
[1617288317705,5.61320781,1932.6,1932.3,5.01]
[1617288317931,5.61320781,1932.6,1932.3,8.77]
[1617288318133,5.23320781,1932.6,1932.3,5.01]
[1617288318333,1.61,1932.9,1932.3,13.01]
[1617288318532,0.41,1932.8,1932.3,15.41]
[1617288318832,0.41,1932.8,1932.3,13.01]
[1617288319031,0.4,1932.5,1932.3,7.4160924]
[1617288319235,1.4,1932.4,1932.1,10.56350944]
[1617288319433,1.54,1932.4,1932.1,10.56350944]
[1617288320133,1.54,1932.4,1932.1,2.99089138]
[1617288320756,1.0,1932.4,1932.1,3.27089138]
[1617288321158,1.0,1932.4,1932.3,5.01]
[1617288321558,1.0,1932.4,1932.1,16.28089138]
[1617288321762,1.0,1932.4,1932.1,16.31]
[1617288322168,1.38,1932.4,1932.1,16.31]
[1617288322568,23.85,1932.2,1932.1,3.02]
[1617288322767,23.85,1932.2,1931.6,9.46714664]
[1617288322768,25.05,1932.2,1931.6,9.46714664]
[1617288323102,25.05,1932.2,1931.5,40.50378062]
[1617288323103,0.39,1931.9,1931.5,40.50378062]
[1617288323293,0.39,1931.9,1931.5,24.9011]
[1617288323294,0.41,1931.7,1931.5,24.9011]
[1617288323697,6.492,1931.7,1931.5,24.9011]
[1617288323901,15.56,1931.6,1931.5,24.9011]
[1617288324489,0.41,1931.6,1931.5,24.9011]
[1617288325294,0.41,1931.6,1930.9,8.23725959]
[1617288325592,0.41,1931.6,1930.9,7.85725959]
[1617288325593,0.4,1931.4,1930.9,7.85725959]
[1617288326209,0.4,1931.4,1930.9,8.13725959]
[1617288326513,0.41,1932.9,1931.3,0.41]
[1617288326713,0.41,1932.9,1932.0,0.42]
[1617288327013,0.41,1932.9,1932.4,9.1967]
[1617288327213,0.03630377,1933.4,1932.9,18.85]
[1617288327513,20.18160781,1933.6,1933.2,0.38]
[1617288327514,5.23320781,1933.6,1933.2,0.38]
[1617288327710,0.03893439,1933.4,1933.3,21.87]
[1617288328010,1.38,1933.9,1933.4,7.76035]
[1617288328011,0.9,1933.9,1933.4,7.76035]
[1617288328210,0.9,1933.9,1933.6,5.84922435]
[1617288328435,0.9,1933.9,1933.8,6.53]
[1617288328633,0.9,1933.9,1933.8,0.44900429]
[1617288328832,0.9,1933.9,1933.6,6.67822435]
[1617288329033,1.3,1933.9,1933.6,6.67822435]
[1617288329233,1.25,1933.9,1933.6,6.67822435]
[1617288329433,0.41,1933.8,1933.6,5.99753238]
[1617288330032,0.4,1933.7,1933.6,5.0854452]
[1617288330233,0.4,1933.7,1933.6,2.96774282]
[1617288331060,0.4,1933.7,1933.4,7.76035]
[1617288331259,0.38,1933.5,1933.4,7.76035]
[1617288331958,0.14,1933.8,1933.4,7.76035]
[1617288332162,0.14,1933.8,1933.4,8.04035]
[1617288332163,0.4,1933.7,1933.4,8.04035]
[1617288332459,0.4,1933.7,1933.4,7.76035]
[1617288332660,0.14,1933.8,1933.4,8.15035]
[1617288332861,0.14,1933.8,1933.4,8.13441894]
[1617288333160,0.14,1933.8,1933.4,7.85441894]
[1617288333360,0.38,1933.6,1933.4,7.76035]
[1617288333789,7.7,1933.5,1933.4,7.76035]
[1617288333990,0.4,1933.5,1933.4,7.76035]
[1617288334493,0.4,1933.5,1933.3,5.01]
[1617288335096,0.41,1933.4,1933.1,5.10406894]
[1617288335495,0.4,1933.2,1933.0,0.09406894]
[1617288335794,0.4,1933.2,1932.9,5.17352]
[1617288335993,0.14,1933.4,1932.9,5.57352]
[1617288336209,0.4,1933.4,1933.1,0.09406894]
[1617288336409,0.4,1933.4,1933.1,7.76239]
[1617288336610,0.39,1933.5,1933.2,3.97526894]
[1617288336810,0.14,1933.8,1933.2,3.8812]
[1617288337110,0.39,1933.8,1933.3,0.385]
[1617288337613,0.38,1933.7,1933.2,0.09406894]
[1617288337813,0.41,1933.5,1933.3,10.48155]
[1617288338011,0.41,1933.5,1933.4,3.88041]
[1617288338410,0.38,1933.6,1933.4,3.88041]
[1617288338621,0.049,1933.7,1933.4,3.88041]
[1617288338852,1.4,1933.9,1933.4,3.88041]
[1617288339452,6.97732993,1933.9,1933.4,3.88041]
[1617288340258,0.41,1933.7,1933.5,6.761]
[1617288340655,0.41,1933.7,1933.5,2.20052108]
[1617288341156,0.41,1933.7,1933.4,6.84041]
[1617288341358,6.56732993,1933.9,1933.4,3.88041]
[1617288341359,0.39,1933.5,1933.4,3.88041]
[1617288341562,0.39,1933.5,1933.2,10.34825]
[1617288341766,0.4,1933.3,1933.2,10.34825]
[1617288341963,0.4,1933.3,1933.0,5.17439]
[1617288342165,0.4,1933.3,1932.9,0.25024455]
[1617288342476,0.14,1933.6,1932.9,0.25024455]
[1617288342477,0.38,1933.1,1932.9,0.09406894]
[1617288342665,9.1583,1933.4,1932.7,7.2451948]
[1617288342666,1.1064,1933.2,1932.7,0.09406894]
[1617288342865,8.3119,1933.0,1932.7,0.09406894]
[1617288343067,8.6919,1933.0,1932.4,0.39]
[1617288343464,0.39,1932.9,1932.3,5.26979894]
[1617288343663,0.39,1932.9,1932.3,5.66979894]
[1617288343965,0.39,1932.9,1932.6,19.77991]
[1617288344787,0.14,1933.1,1932.6,19.77991]
[1617288345294,0.41,1933.0,1932.6,19.77991]
[1617288345486,0.41,1933.0,1932.6,23.66172]
[1617288345788,0.39,1932.8,1932.6,15.89761]
[1617288346289,0.39,1932.8,1932.6,12.0158]
[1617288347213,0.39,1932.8,1932.6,16.1558]
[1617288347413,0.14,1933.1,1932.6,16.1558]
[1617288347617,0.14,1933.1,1932.7,8.15403]
[1617288347914,0.41,1933.2,1932.7,12.22409894]
[1617288348113,1.6438,1933.2,1932.7,12.22409894]
[1617288348316,0.4,1933.1,1932.7,9.18315462]
[1617288348714,0.4,1933.1,1932.7,14.19315462]
[1617288350033,0.4,1933.1,1932.7,10.55315462]
[1617288350236,0.4,1933.1,1932.7,5.20715462]
[1617288350432,0.38,1932.9,1932.7,5.20715462]
[1617288350634,0.38,1932.9,1932.7,5.11308568]
[1617288350933,2.16116525,1933.2,1932.7,5.11308568]
[1617288351132,0.39,1933.1,1932.7,5.20715462]
[1617288351634,0.38,1932.9,1932.7,5.11308568]
[1617288351835,0.38,1932.9,1932.6,12.0158]
[1617288353097,0.38,1932.9,1932.5,15.36014]
[1617288353392,0.38,1932.9,1932.5,15.64014]
[1617288355011,6.7536,1932.9,1932.5,10.35014]
[1617288355216,6.7536,1932.9,1931.9,12.0955]
[1617288355217,26.84471322,1932.6,1932.0,0.09406894]
[1617288355421,0.39,1932.1,1931.7,1.22269406]
[1617288355618,0.14,1932.2,1931.7,1.22269406]
[1617288355812,0.14,1932.2,1931.8,0.357]
[1617288356019,0.14,1932.2,1931.7,1.22269406]
[1617288356215,0.4,1932.1,1931.5,0.47406894]
[1617288356415,8.5496,1932.1,1931.5,0.75406894]
[1617288356614,8.5496,1932.1,1931.5,0.66]
[1617288357313,8.5496,1932.1,1931.6,5.01]
[1617288357515,8.5496,1932.1,1931.6,12.77816]
[1617288358516,3.1545517,1932.0,1931.6,7.76816]
[1617288358716,10.5389,1932.1,1931.5,0.28]
[1617288358917,10.5389,1932.1,1931.2,2.16557734]
[1617288358918,0.39,1931.7,1931.2,0.09406894]
[1617288359121,3.5345517,1931.5,1931.2,0.09406894]
[1617288359418,0.38,1931.5,1931.1,12.3412]
[1617288360244,3.5345517,1931.5,1931.1,12.3412]
[1617288360441,0.39,1931.3,1931.1,12.3412]
[1617288360646,15.8545517,1931.2,1931.1,12.3412]
[1617288360846,25.5692517,1931.2,1931.1,1.0]
[1617288361044,26.7692517,1931.2,1931.1,1.0]
[1617288361243,24.951,1931.2,1931.1,1.0]
[1617288361642,23.6147,1931.2,1931.1,1.0]
[1617288361844,24.8254,1931.2,1931.1,1.0]
[1617288362140,23.6147,1931.2,1931.1,1.0]
[1617288362341,24.655,1931.2,1931.1,1.0]
[1617288362766,24.6603,1931.2,1931.1,1.0]
[1617288362964,25.99042445,1931.2,1931.1,1.0]
[1617288363169,12.1212,1931.2,1931.1,1.0]
[1617288363371,1.61,1931.2,1931.1,1.0]
[1617288364067,1.7374,1931.2,1931.1,1.0]
[1617288364274,1.2,1931.3,1931.1,1.0]
[1617288364468,2.3438,1931.3,1931.1,1.0]
[1617288364668,1.1438,1931.3,1931.1,1.41]
[1617288364870,2.3851,1931.6,1931.1,1.41]
[1617288365293,0.53,1931.8,1931.1,6.42]
[1617288365489,0.14,1931.8,1931.3,0.41]
[1617288365795,0.4,1931.9,1931.4,0.336]
[1617288365996,7.77022,1932.1,1931.6,0.028]
[1617288366193,3.66216992,1932.2,1931.6,0.028]
[1617288366592,1.6373,1932.2,1931.7,0.39]
[1617288366792,1.6373,1932.2,1931.6,0.028]
[1617288366793,0.52,1932.2,1931.6,0.028]
[1617288367512,0.4,1932.0,1931.6,0.028]
[1617288367718,3.54216992,1932.1,1931.4,8.15852]
[1617288367918,7.90943,1932.2,1931.6,5.4]
[1617288368125,12.62739992,1932.2,1931.6,5.4]
[1617288368424,12.62739992,1932.2,1931.6,5.01]
[1617288368720,0.41,1931.7,1931.4,5.01]
[1617288368922,3.14216992,1931.6,1931.4,5.01]
[1617288369121,17.16,1931.5,1931.1,1.0]
[1617288369319,4.5,1931.4,1931.1,1.0]
[1617288369721,3.53216992,1931.3,1931.1,1.0]
[1617288369922,12.32245992,1931.3,1931.1,1.0]
[1617288370220,36.1024,1931.2,1931.1,1.0]
[1617288370458,37.1932,1931.2,1931.1,1.0]
[1617288370662,37.1932,1931.2,1931.1,0.6084]
[1617288370856,37.3615,1931.2,1931.1,0.6084]
[1617288371061,37.1478,1931.2,1931.1,0.6084]
[1617288371258,36.1024,1931.2,1931.1,0.6084]
[1617288371562,37.384,1931.2,1931.1,0.6084]
[1617288371757,36.1024,1931.2,1931.1,0.6084]
[1617288371958,38.3992,1931.2,1931.1,0.6084]
[1617288372459,37.3024,1931.2,1931.1,0.6084]
[1617288372661,38.6898,1931.2,1931.1,0.6084]
[1617288372972,37.3024,1931.2,1931.1,0.6084]
[1617288373169,38.4826,1931.2,1931.1,0.6084]
[1617288373467,11.9426,1931.2,1931.1,0.6084]
[1617288373670,10.7624,1931.2,1931.1,0.6084]
[1617288373868,14.2828045,1931.2,1931.1,0.6084]
[1617288374067,12.4082,1931.2,1931.1,0.6084]
[1617288374267,11.0529,1931.2,1931.1,0.6084]
[1617288374668,9.9524,1931.2,1931.1,0.6084]
[1617288374871,15.011,1931.2,1931.1,0.6084]
[1617288375270,13.64,1931.2,1931.1,0.6084]
[1617288375472,14.9598,1931.2,1931.1,0.6084]
[1617288375885,13.64,1931.2,1931.1,0.6084]
[1617288376089,14.7395,1931.2,1931.1,0.6084]
[1617288376487,20.0971,1931.2,1931.1,0.6084]
[1617288376788,22.6121,1931.2,1931.1,0.6084]
[1617288376986,21.2971,1931.2,1931.1,0.6084]
[1617288377288,22.6099,1931.2,1931.1,0.6084]
[1617288377685,22.6795,1931.2,1931.1,0.6084]
[1617288377886,22.3656,1931.2,1931.1,0.6084]
[1617288378086,21.2971,1931.2,1931.1,0.6084]
[1617288378317,22.3891,1931.2,1931.1,0.6084]
[1617288378818,32.5742,1931.2,1931.1,0.6084]
[1617288379015,31.2971,1931.2,1931.1,0.6084]
[1617288379221,32.5412,1931.2,1931.1,0.6084]
[1617288379418,32.5412,1931.2,1931.1,1.64055248]
[1617288379920,32.5412,1931.2,1931.1,0.6084]
[1617288379921,53.90667,1931.2,1931.1,0.6084]
[1617288380123,21.3,1930.7,1930.6,1.0]
[1617288380324,29.8019,1930.7,1930.6,1.0]
[1617288380520,31.0019,1930.7,1930.6,1.0]
[1617288380723,31.0019,1930.7,1930.6,0.0001]
[1617288380943,44.77762,1930.7,1930.6,0.0001]
[1617288381145,49.78762,1930.7,1930.6,0.0001]
[1617288381349,20.74,1930.2,1930.1,1.0]
[1617288381544,31.5583,1930.2,1930.1,1.0]
[1617288381944,32.6326,1930.2,1930.1,1.0]
[1617288382146,32.6326,1930.2,1929.6,1.0]
[1617288382147,37.2,1930.1,1929.6,1.0]
[1617288382359,25.99,1929.7,1929.6,1.0]
[1617288382555,34.0676,1929.7,1929.6,1.0]
[1617288382755,35.1848,1929.7,1929.6,1.0]
[1617288383152,35.3471,1929.7,1929.6,1.0]
[1617288383587,52.88648,1929.7,1929.6,1.0]
[1617288383990,27.28648,1929.7,1929.6,1.0]
[1617288384186,19.5062,1929.7,1929.6,1.0]
[1617288384594,19.1162,1929.7,1929.6,1.0]
[1617288384888,9.1162,1929.7,1929.6,1.0]
[1617288385089,8.0776,1929.7,1929.6,1.0]
[1617288385289,9.8645,1929.7,1929.6,1.0]
[1617288385487,18.4776,1929.7,1929.6,1.0]
[1617288385688,9.5444,1929.7,1929.6,1.0]
[1617288385992,9.1444,1929.7,1929.6,1.0]
[1617288386190,0.8715,1929.8,1929.6,6.01]
[1617288386390,0.41,1930.1,1929.6,7.03362653]
[1617288386692,0.14,1930.3,1929.6,6.4]
[1617288386890,1.6388,1930.3,1929.6,6.4]
[1617288387088,9.41596,1930.3,1929.7,0.38]
[1617288387290,11.2,1930.2,1929.6,6.01]
[1617288387489,11.6,1930.2,1929.6,6.4]
[1617288387690,4.227,1930.1,1929.6,6.4]
[1617288387891,4.607,1930.1,1929.6,6.01]
[1617288388290,2.907,1930.1,1929.6,6.01]
[1617288388491,0.41,1929.9,1929.6,6.01]
[1617288388712,0.41,1929.9,1929.6,1.0]
[1617288388916,10.41,1929.9,1929.6,1.0]
[1617288389314,1.0725,1929.8,1929.6,1.0]
[1617288389715,31.65970562,1929.7,1929.6,1.0]
[1617288389917,33.84980562,1929.7,1929.6,1.0]
[1617288390115,34.99280562,1929.7,1929.6,1.0]
[1617288390514,21.8831,1929.7,1929.6,1.0]
[1617288390714,20.7401,1929.7,1929.6,1.0]
[1617288391019,19.5439,1929.7,1929.6,1.0]
[1617288391337,19.3238,1929.7,1929.6,1.0]
[1617288391541,20.5238,1929.7,1929.6,1.0]
[1617288391736,2.2887,1929.7,1929.6,1.0]
[1617288391940,1.0887,1929.7,1929.6,1.0]
[1617288392237,15.08964,1929.9,1929.6,1.0]
[1617288392437,6.3022,1929.8,1929.6,1.0]
[1617288392638,10.0,1929.7,1929.6,1.0]
[1617288393140,29.4983,1929.7,1929.6,1.0]
[1617288393840,29.8883,1929.7,1929.6,1.0]
[1617288395565,37.7387,1929.7,1929.6,1.0]
[1617288395765,39.1511,1929.7,1929.6,1.0]
[1617288396470,45.26622176,1929.7,1929.1,1.0]
[1617288396694,38.25,1929.2,1929.1,1.0]
[1617288396895,48.8422,1929.2,1929.1,1.0]
[1617288397093,49.9165,1929.2,1929.1,1.0]
[1617288399329,49.9165,1929.2,1929.1,0.83]
[1617288400036,3.89159,1929.0,1928.1,1.0]
[1617288400235,0.39,1928.8,1928.2,0.39]
[1617288400534,14.14,1928.7,1928.1,1.0]
[1617288400737,14.14,1928.7,1928.1,1.39]
[1617288400934,13.75,1928.7,1928.2,0.39]
[1617288401333,22.1879,1928.8,1928.3,5.01]
[1617288401534,12.1879,1928.8,1928.3,5.01]
[1617288401835,3.32,1928.7,1928.3,5.42]
[1617288402436,1.218,1928.8,1928.3,5.42]
[1617288402635,1.218,1928.8,1928.5,0.39]
[1617288402838,0.14,1929.1,1928.5,0.39]
[1617288403037,0.54,1929.1,1928.5,0.67]
[1617288403241,1.2,1929.0,1928.6,1.41]
[1617288403440,8.93578,1929.1,1928.6,1.41]
[1617288404139,1.1535,1929.1,1928.6,1.41]
[1617288404459,2.3535,1929.1,1928.7,0.39]
[1617288404659,2.3535,1929.1,1928.6,1.41]
[1617288405861,11.1535,1929.1,1928.7,5.39]
[1617288406061,1.1613,1929.0,1928.7,5.39]
[1617288406262,1.1613,1929.0,1928.7,0.38]
[1617288406661,1.1613,1929.0,1928.6,0.75]
[1617288407989,1.73,1929.1,1928.6,0.75]
[1617288408189,3.0852,1929.1,1928.6,0.75]
[1617288408387,2.6952,1929.1,1928.6,1.15]
[1617288408590,1.4952,1929.1,1928.6,1.15]
[1617288408991,1.3255,1929.0,1928.6,1.15]
[1617288409290,0.14,1929.1,1928.6,1.15]
[1617288410216,0.14,1929.1,1928.7,0.41]
[1617288410810,7.31247148,1929.2,1928.7,5.42]
[1617288411309,7.70247148,1929.2,1928.6,0.75]
[1617288411509,7.70247148,1929.2,1928.7,0.39]
[1617288411708,15.48344148,1929.2,1928.7,0.39]
[1617288412336,7.31247148,1929.2,1928.8,0.4]
[1617288413136,17.31247148,1929.2,1928.8,0.4]
[1617288413340,2.84,1929.1,1928.6,0.75]
[1617288413539,4.2004,1929.1,1928.6,0.75]
[1617288413840,3.06,1929.0,1928.6,0.75]
[1617288414037,4.3715,1929.0,1928.6,0.75]
[1617288415069,5.3221,1929.0,1928.6,0.75]
[1617288415269,13.1039,1929.0,1928.6,0.75]
[1617288415468,4.11,1928.9,1928.6,0.75]
[1617288415670,2.7,1928.8,1928.6,0.75]
[1617288416167,10.2724,1928.8,1928.6,0.75]
[1617288416467,9.0082,1928.8,1928.6,0.75]
[1617288416662,10.0857,1928.8,1928.6,0.75]
[1617288416861,10.1287,1928.8,1928.6,0.75]
[1617288417062,11.4708,1928.8,1928.6,0.75]
[1617288417263,11.4708,1928.8,1928.6,1.78670518]
[1617288417462,2.74,1928.7,1928.6,0.75]
[1617288417893,8.6958,1928.8,1928.6,0.75]
[1617288418303,7.4287,1928.8,1928.6,0.75]
[1617288418500,8.6935,1928.8,1928.6,0.75]
[1617288418692,7.4287,1928.8,1928.6,0.75]
[1617288418898,8.5091,1928.8,1928.6,0.75]
[1617288419094,8.6,1928.7,1928.6,0.75]
[1617288419295,7.4,1928.7,1928.6,0.75]
[1617288419995,11.64,1928.7,1928.6,0.75]
[1617288420513,7.4,1928.7,1928.6,0.75]
[1617288420710,7.4,1928.7,1928.6,1.78608297]
[1617288420912,8.5368,1928.8,1928.6,1.78608297]
[1617288421111,8.6287,1928.8,1928.6,1.78608297]
[1617288421321,9.6591,1928.8,1928.6,1.78608297]
[1617288422012,26.99,1928.7,1928.6,0.75]
[1617288422217,35.97329,1928.7,1928.6,0.0001]
[1617288422837,38.08529,1928.7,1928.6,0.0001]
[1617288423040,35.97329,1928.7,1928.6,0.0001]
[1617288424539,8.98329,1928.7,1928.6,0.0001]
[1617288424740,9.39329,1928.7,1928.6,0.0001]
[1617288424941,8.19329,1928.7,1928.6,0.0001]
[1617288425338,13.44329,1928.7,1928.6,0.0001]
[1617288427271,23.09329,1928.7,1928.6,0.0001]
[1617288427470,32.61089,1928.7,1928.6,0.0001]
[1617288428597,33.81089,1928.7,1928.6,0.0001]
[1617288428888,23.75089,1928.7,1928.6,0.0001]
[1617288429091,13.03329,1928.7,1928.6,0.0001]
[1617288429589,5.25,1928.7,1928.6,0.0001]
[1617288430289,13.4,1928.7,1928.6,0.0001]
[1617288430740,12.2,1928.7,1928.6,0.0001]
[1617288431139,5.25,1928.7,1928.6,0.0001]
[1617288432438,16.5,1928.7,1928.6,0.0001]
[1617288432638,16.91,1928.7,1928.6,0.0001]
[1617288433452,18.11,1928.7,1928.6,0.0001]
[1617288433640,26.5856,1928.7,1928.6,0.0001]
[1617288434143,26.5856,1928.7,1928.1,1.0]
[1617288434144,15.65,1928.6,1928.1,1.0]
[1617288434344,10.0856,1928.7,1928.1,1.67]
[1617288434345,8.87818,1928.5,1928.1,1.67]
[1617288435241,3.89199,1928.4,1928.1,4.7590022]
[1617288435442,1.2991,1928.3,1928.2,0.4]
[1617288435847,1.06,1928.3,1928.2,5.41]
[1617288436069,3.89199,1928.4,1928.2,5.41]
[1617288436266,1.0216,1928.3,1928.2,0.4]
[1617288436461,1.0902,1928.3,1928.1,9.45273]
[1617288437566,3.89199,1928.4,1928.2,0.39]
[1617288437763,1.2926,1928.3,1928.2,0.39]
[1617288438162,1.0083,1928.3,1928.2,0.39]
[1617288438620,1.159,1928.3,1928.1,12.1017322]
[1617288438818,1.159,1928.3,1928.1,11.8217322]
[1617288439019,1.159,1928.3,1928.1,8.73273]
[1617288439222,1.159,1928.3,1928.1,0.95]
[1617288439823,1.559,1928.3,1928.1,0.95]
[1617288440224,11.29,1928.2,1928.1,0.95]
[1617288440424,21.29,1928.2,1928.1,0.95]
[1617288440625,22.5984,1928.2,1928.1,0.95]
[1617288441125,1.7084,1928.2,1928.1,0.95]